fUST/lending_fUST_20250430
["ID","MTS","AMOUNT","RATE_DAILY","PERIOD"]
[359378923,1745963450644,-400.0,0.00027397,2]
[359378924,1745963450653,-300.0,0.00027397,2]
[359378925,1745963450662,-691.09,0.00027397,2]
[359378926,1745963450672,-400.0,0.00027397,2]
[359378927,1745963450681,-674.95,0.00027397,2]
[359378928,1745963450693,-300.32915545,0.00027397,2]
[359378929,1745963450702,-400.0,0.00027397,2]
[359378930,1745963450712,-400.0,0.00027397,2]
[359378931,1745963450721,-400.0,0.00027397,2]
[359378932,1745963450731,-1063.37,0.00027397,2]
[359378933,1745963450740,-400.0,0.00027397,2]
[359378934,1745963450752,-692.75,0.00027397,2]
[359378935,1745963450761,-487.86,0.00027397,2]
[359378936,1745963450771,-400.0,0.00027397,2]
[359378937,1745963450781,-417.14,0.00027397,2]
[359378938,1745963450791,-2987.08,0.00027397,2]
[359378939,1745963450801,-400.0,0.00027397,2]
[359378940,1745963450810,-287.90891486,0.00027397,2]
[359378941,1745963450819,-1082.68,0.00027397,2]
[359378942,1745963450829,-400.0,0.00027397,2]
[359378943,1745963450838,-400.0,0.00027397,2]
[359378944,1745963450848,-400.0,0.00027397,2]
[359378945,1745963450857,-400.0,0.00027397,2]
[359378946,1745963450867,-151.0,0.00027397,7]
[359378947,1745963450876,-400.0,0.00027397,2]
[359378948,1745963450886,-151.0,0.00027397,7]
[359378949,1745963450896,-151.0,0.00027397,7]
[359378950,1745963450905,-400.0,0.00027397,2]
[359378951,1745963450915,-151.0,0.00027397,7]
[359378952,1745963450925,-1255.79,0.00027397,2]
[359378953,1745963450935,-151.0,0.00027397,7]
[359378954,1745963450945,-151.0,0.00027397,7]
[359378955,1745963450955,-151.0,0.00027397,7]
[359378956,1745963450965,-151.0,0.00027397,7]
[359378957,1745963450974,-400.0,0.00027397,2]
[359378958,1745963450984,-151.0,0.00027397,7]
[359378959,1745963450993,-400.0,0.00027397,2]
[359378960,1745963451003,-151.0,0.00027397,7]
[359378961,1745963451012,-1192.77,0.00027397,2]
[359378962,1745963451022,-151.0,0.00027397,7]
[359378963,1745963451032,-151.0,0.00027397,7]
[359378964,1745963451041,-151.0,0.00027397,7]
[359378965,1745963451051,-500.0,0.00027397,2]
[359378966,1745963451061,-151.0,0.00027397,7]
[359378967,1745963451071,-1839.52,0.00027397,2]
[359378968,1745963451082,-500.0,0.00027397,2]
[359378969,1745963451092,-151.0,0.00027397,7]
[359378970,1745963451103,-400.0,0.00027397,2]
[359378971,1745963451113,-151.0,0.00027397,7]
[359378972,1745963451123,-151.0,0.00027397,7]
[359378973,1745963451133,-151.0,0.00027397,7]
[359378974,1745963451143,-151.0,0.00027397,7]
[359378975,1745963451153,-969.86,0.00027397,2]
[359378976,1745963451164,-839.62,0.00027397,2]
[359378977,1745963451174,-561.55,0.00027397,2]
[359378978,1745963451185,-300.0,0.00027397,2]
[359378979,1745963451195,-412.7,0.00027397,2]
[359378980,1745963451204,-900.23,0.00027397,2]
[359378981,1745963451214,-1422.83,0.00027397,2]
[359378982,1745963451223,-400.0,0.00027397,2]
[359378983,1745963451233,-400.0,0.00027397,2]
[359378984,1745963451242,-2607.24,0.00027397,2]
[359378985,1745963451252,-400.0,0.00027397,2]
[359378986,1745963451261,-536.31,0.00027397,2]
[359378987,1745963451271,-927.42,0.00027397,2]
[359378988,1745963451280,-546.82,0.00027397,2]
[359378989,1745963451290,-400.0,0.00027397,2]
[359378990,1745963451300,-661.04,0.00027397,2]
[359378991,1745963451309,-151.0,0.00027397,7]
[359378992,1745963451318,-151.0,0.00027397,7]
[359378993,1745963451328,-400.0,0.00027397,2]
[359378994,1745963451337,-151.0,0.00027397,7]
[359378995,1745963451347,-151.0,0.00027397,7]
[359378996,1745963451356,-151.0,0.00027397,7]
[359378997,1745963451367,-151.0,0.00027397,7]
[359378998,1745963451376,-400.0,0.00027397,2]
[359378999,1745963451386,-749.97,0.00027397,2]
[359379000,1745963451396,-752.7,0.00027397,2]
[359379001,1745963451408,-400.0,0.00027397,2]
[359379002,1745963451418,-400.0,0.00027397,2]
[359379003,1745963451427,-513.80790565,0.00027397,2]
[359379004,1745963451439,-890.66,0.00027397,2]
[359379005,1745963451450,-400.0,0.00027397,2]
[359379006,1745963451461,-400.0,0.00027397,2]
[359379007,1745963451470,-400.0,0.00027397,2]
[359379008,1745963451479,-151.0,0.00027397,7]
[359379009,1745963451489,-151.0,0.00027397,7]
[359379010,1745963451499,-151.0,0.00027397,7]
[359379011,1745963451508,-151.0,0.00027397,7]
[359379012,1745963451518,-151.0,0.00027397,7]
[359379013,1745963451528,-1785.43,0.00027397,2]
[359379014,1745963451537,-400.0,0.00027397,2]
[359379015,1745963451547,-151.0,0.00027397,7]
[359379016,1745963451556,-151.0,0.00027397,7]
[359379017,1745963451566,-400.0,0.00027397,2]
[359379018,1745963451575,-2165.34,0.00027397,2]
[359379019,1745963451586,-151.0,0.00027397,7]
[359379020,1745963451596,-421.28334683,0.00027397,7]
[359379021,1745963451607,-151.0,0.00027397,7]
[359379022,1745963451616,-151.0,0.00027397,7]
[359379023,1745963451626,-400.0,0.00027397,2]
[359379024,1745963451635,-628.17,0.00027397,2]
[359379025,1745963451645,-400.0,0.00027397,2]
[359379026,1745963451655,-400.0,0.00027397,2]
[359379027,1745963451664,-2960.09,0.00027397,2]
[359379028,1745963451674,-400.0,0.00027397,2]
[359379029,1745963451684,-400.0,0.00027397,2]
[359379030,1745963451697,-400.0,0.00027397,2]
[359379031,1745963451707,-400.0,0.00027397,2]
[359379032,1745963451716,-1143.87,0.00027397,2]
[359379033,1745963451727,-12589.54207618,0.00027397,7]
[359379034,1745963451736,-400.0,0.00027397,2]
[359379035,1745963451746,-2068.51,0.00027397,2]
[359379036,1745963451759,-292.155656,0.00027397,7]
[359379037,1745963451770,-400.0,0.00027397,2]
[359379038,1745963451779,-400.0,0.00027397,2]
[359379039,1745963451789,-400.0,0.00027397,2]
[359379040,1745963451799,-400.0,0.00027397,2]
[359379041,1745963451809,-408.81,0.00027397,2]
[359379042,1745963451818,-1156.16,0.00027397,2]
[359379043,1745963451828,-348.190547,0.00027397,7]
[359379044,1745963451837,-400.0,0.00027397,2]
[359379045,1745963451846,-348.190547,0.00027397,7]
[359379046,1745963451855,-348.190547,0.00027397,7]
[359379047,1745963451865,-833.23,0.00027397,2]
[359379048,1745963451875,-685.864806,0.00027397,7]
[359379049,1745963451884,-685.864806,0.00027397,7]
[359379050,1745963451894,-348.190547,0.00027397,7]
[359379051,1745963451903,-400.0,0.00027397,2]
[359379052,1745963451913,-685.864806,0.00027397,7]
[359379053,1745963451923,-348.190547,0.00027397,7]
[359379054,1745963451932,-685.864806,0.00027397,7]
[359379055,1745963451942,-685.864806,0.00027397,7]
[359379056,1745963451951,-1150.3,0.00027397,2]
[359379057,1745963451960,-685.864806,0.00027397,7]
[359379058,1745963451970,-2165.24,0.00027397,2]
[359379059,1745963451979,-319.62751916,0.00027397,2]
[359379060,1745963451989,-348.190547,0.00027397,7]
[359379061,1745963451998,-348.190547,0.00027397,7]
[359379062,1745963452007,-348.190547,0.00027397,7]
[359379063,1745963452017,-455.09118,0.00027397,7]
[359379064,1745963452026,-348.190547,0.00027397,7]
[359379065,1745963452035,-455.09118,0.00027397,7]
[359379066,1745963452045,-685.864806,0.00027397,7]
[359379067,1745963452054,-348.190547,0.00027397,7]
[359379068,1745963452064,-455.09118,0.00027397,7]
[359379069,1745963452073,-685.864806,0.00027397,7]
[359379070,1745963452083,-234.775697,0.00027397,7]
[359379071,1745963452092,-455.09118,0.00027397,7]
[359379072,1745963452101,-685.864806,0.00027397,7]
[359379073,1745963452110,-455.09118,0.00027397,7]
[359379074,1745963452119,-234.775697,0.00027397,7]
[359379075,1745963452129,-685.864806,0.00027397,7]
[359379076,1745963452138,-455.09118,0.00027397,7]
[359379077,1745963452147,-234.775697,0.00027397,7]
[359379078,1745963452157,-685.864806,0.00027397,7]
[359379079,1745963452166,-234.775697,0.00027397,7]
[359379080,1745963452175,-685.864806,0.00027397,7]
[359379081,1745963452185,-234.775697,0.00027397,7]
[359379082,1745963452195,-1083.07,0.00027397,2]
[359379083,1745963452204,-455.09118,0.00027397,7]
[359379084,1745963452214,-455.09118,0.00027397,7]
[359379085,1745963452224,-455.09118,0.00027397,7]
[359379086,1745963452234,-455.09118,0.00027397,7]
[359379087,1745963452244,-455.09118,0.00027397,7]
[359379088,1745963452254,-234.775697,0.00027397,7]
[359379089,1745963452263,-455.09118,0.00027397,7]
[359379090,1745963452273,-234.775697,0.00027397,7]
[359379091,1745963452284,-234.775697,0.00027397,7]
[359379092,1745963452293,-234.775697,0.00027397,7]
[359379093,1745963452303,-234.775697,0.00027397,7]
[359379094,1745963452312,-400.0,0.00027397,2]
[359379095,1745963452322,-2495.98,0.00027397,2]
[359379096,1745963452331,-400.0,0.00027397,2]
[359379097,1745963452341,-204.31373488,0.00027397,2]
[359379098,1745963452350,-400.0,0.00027397,2]
[359379099,1745963452360,-400.0,0.00027397,2]
[359379100,1745963452369,-151.0,0.00027397,7]
[359379101,1745963452378,-151.0,0.00027397,7]
[359379102,1745963452387,-465.53,0.00027397,2]
[359379103,1745963452397,-229.408192,0.00027397,7]
[359379104,1745963452406,-400.0,0.00027397,2]
[359379105,1745963452415,-1352.29,0.00027397,2]
[359379106,1745963452424,-691.92,0.00027397,2]
[359379107,1745963452434,-400.0,0.00027397,2]
[359379108,1745963452443,-840.73483787,0.00027397,7]
[359379109,1745963452452,-400.0,0.00027397,2]
[359379110,1745963452462,-400.0,0.00027397,2]
[359379111,1745963452471,-400.0,0.00027397,2]
[359379112,1745963452481,-850.97,0.00027397,2]
[359379113,1745963452490,-400.0,0.00027397,2]
[359379114,1745963452499,-200.0,0.00027397,2]
[359379115,1745963452509,-400.0,0.00027397,2]
[359379116,1745963452519,-1278.18,0.00027397,2]
[359379117,1745963452529,-400.0,0.00027397,2]
[359379118,1745963452539,-500.0,0.00027397,2]
[359379119,1745963452549,-400.0,0.00027397,2]
[359379120,1745963452559,-426.75,0.00027397,2]
[359379121,1745963452568,-400.0,0.00027397,2]
[359379122,1745963452578,-400.0,0.00027397,2]
[359379123,1745963452588,-500.0,0.00027397,2]
[359379124,1745963452597,-400.0,0.00027397,2]
[359379125,1745963452607,-400.0,0.00027397,2]
[359379126,1745963452616,-157.85615897,0.00027397,2]
[359379127,1745963452626,-475.75673581,0.00027397,2]
[359379128,1745963452635,-1359.29,0.00027397,2]
[359379129,1745963452645,-258.15253874,0.00027397,2]
[359379130,1745963452655,-400.0,0.00027397,2]
[359379131,1745963452664,-200.0,0.00027397,2]
[359379132,1745963452673,-508.55602999,0.00027397,2]
[359379133,1745963452683,-884.28,0.00027397,2]
[359379134,1745963452696,-1485.92,0.00027397,2]
[359379135,1745963452706,-400.0,0.00027397,2]
[359379136,1745963452717,-400.0,0.00027397,2]
[359379137,1745963452727,-400.0,0.00027397,2]
[359379138,1745963452739,-400.0,0.00027397,2]
[359379139,1745963452749,-400.0,0.00027397,2]
[359379140,1745963452759,-400.0,0.00027397,2]
[359379141,1745963452770,-400.0,0.00027397,2]
[359379142,1745963452779,-500.88991179,0.00027397,2]
[359379143,1745963452789,-160.0,0.00027397,7]
[359379144,1745963452798,-544.27,0.00027397,2]
[359379145,1745963452807,-320.0,0.00027397,3]
[359379146,1745963452817,-320.0,0.00027397,3]
[359379147,1745963452826,-531.06,0.00027397,2]
[359379148,1745963452836,-5515.01,0.00027397,2]
[359379149,1745963452846,-320.0,0.00027397,3]
[359379150,1745963452856,-400.0,0.00027397,2]
[359379151,1745963452865,-400.0,0.00027397,2]
[359379152,1745963452875,-320.0,0.00027397,3]
[359379153,1745963452885,-210.88742742,0.00027397,3]
[359379154,1745963452894,-2623.4,0.00027397,2]
[359379155,1745963452904,-400.0,0.00027397,2]
[359379156,1745963452914,-400.0,0.00027397,2]
[359379157,1745963452923,-736.07,0.00027397,2]
[359379158,1745963452933,-500.0,0.00027397,2]
[359379159,1745963452942,-359.0,0.00027397,3]
[359379160,1745963452952,-400.0,0.00027397,2]
[359379161,1745963452962,-501.65401536,0.00027397,2]
[359379162,1745963452972,-359.0,0.00027397,3]
[359379163,1745963452982,-201.78141078,0.00027397,2]
[359379164,1745963453092,-211.351126,0.00027397,2]
[359379165,1745963453115,-151.0,0.000274,16]
[359379166,1745963453125,-2241.07832372,0.00027402,2]
[359379167,1745963453135,-418.87778755,0.00027402,2]
[359379168,1745963453146,-2661.0,0.00027412,2]
[359379169,1745963453155,-2661.0,0.00027412,2]
[359379170,1745963453165,-2661.0,0.00027412,2]
[359379171,1745963453175,-2805.4,0.00027412,2]
[359379172,1745963453185,-2805.4,0.00027412,2]
[359379173,1745963453195,-2805.4,0.00027412,2]
[359379174,1745963453204,-2805.4,0.00027412,2]
[359379175,1745963453214,-2805.4,0.00027412,2]
[359379176,1745963453224,-2805.4,0.00027412,2]
[359379177,1745963453234,-2805.4,0.00027412,2]
[359379178,1745963453243,-2805.4,0.00027412,2]
[359379179,1745963453253,-2805.4,0.00027412,2]
[359379180,1745963453262,-2805.4,0.00027412,2]
[359379181,1745963453271,-2805.3,0.00027412,2]
[359379182,1745963453281,-292.956154,0.00027412,7]
[359379183,1745963453290,-151.0,0.00027412,7]
[359379184,1745963453299,-284.096192,0.00027412,7]
[359379185,1745963453308,-274.072939,0.00027412,7]
[359379186,1745963453318,-274.072939,0.00027412,7]
[359379187,1745963453327,-151.0,0.00027412,7]
[359379188,1745963453337,-151.0,0.00027412,7]
[359379189,1745963453346,-151.0,0.00027412,7]
[359379190,1745963453355,-199.23548,0.00027412,7]
[359379191,1745963453364,-363.686898,0.00027412,7]
[359379192,1745963453374,-363.686898,0.00027412,7]
[359379193,1745963453384,-363.686898,0.00027412,7]
[359379194,1745963453393,-363.686898,0.00027412,7]
[359379195,1745963453402,-158.55,0.00027412,7]
[359379196,1745963453411,-158.55,0.00027412,7]
[359379197,1745963453421,-158.55,0.00027412,7]
[359379198,1745963453430,-158.55,0.00027412,7]
[359379199,1745963453440,-304.758345,0.00027412,7]
[359379200,1745963453450,-151.0,0.00027412,7]
[359379201,1745963453460,-151.0,0.00027412,7]
[359379202,1745963453469,-151.0,0.00027412,7]
[359379203,1745963453479,-173.494402,0.00027412,7]
[359379204,1745963453489,-164.236879,0.00027412,7]
[359379205,1745963453499,-570.034764,0.00027412,7]
[359379206,1745963453509,-173.494402,0.00027412,7]
[359379207,1745963453519,-164.236879,0.00027412,7]
[359379208,1745963453529,-570.034764,0.00027412,7]
[359379209,1745963453538,-151.0,0.00027412,7]
[359379210,1745963453548,-151.0,0.00027412,7]
[359379211,1745963453558,-151.0,0.00027412,7]
[359379212,1745963453567,-151.0,0.00027412,7]
[359379213,1745963453576,-151.0,0.00027412,7]
[359379214,1745963453585,-151.0,0.00027412,7]
[359379215,1745963453595,-151.0,0.00027412,7]
[359379216,1745963453605,-151.0,0.00027412,7]
[359379217,1745963453614,-151.0,0.00027412,7]
[359379218,1745963453623,-151.0,0.00027412,7]
[359379219,1745963453633,-151.0,0.00027412,7]
[359379220,1745963453642,-301.744648,0.00027412,7]
[359379221,1745963453652,-301.744648,0.00027412,7]
[359379222,1745963453661,-396.508821,0.00027412,7]
[359379223,1745963453670,-396.508821,0.00027412,7]
[359379224,1745963453679,-627.547889,0.00027412,7]
[359379225,1745963453687,-627.547889,0.00027412,7]
[359379226,1745963453702,-627.547889,0.00027412,7]
[359379227,1745963453712,-627.547889,0.00027412,7]
[359379228,1745963453721,-1100.283541,0.00027412,7]
[359379229,1745963453731,-1100.283541,0.00027412,7]
[359379230,1745963453741,-1100.283541,0.00027412,7]
[359379231,1745963453751,-1100.283541,0.00027412,7]
[359379232,1745963453761,-1324.525088,0.00027412,2]
[359379233,1745963453771,-1324.525088,0.00027412,2]
[359379234,1745963453780,-227.137775,0.00027412,7]
[359379235,1745963453790,-227.137775,0.00027412,7]
[359379236,1745963453799,-523.062648,0.00027412,7]
[359379237,1745963453808,-523.062648,0.00027412,7]
[359379238,1745963453817,-151.0,0.00027412,7]
[359379239,1745963453826,-170.558248,0.00027412,7]
[359379240,1745963453836,-170.558248,0.00027412,7]
[359379241,1745963453846,-437.797287,0.00027412,7]
[359379242,1745963453855,-437.797287,0.00027412,7]
[359379243,1745963453865,-151.0,0.00027412,7]
[359379244,1745963453874,-165.511254,0.00027412,2]
[359379245,1745963453884,-165.511254,0.00027412,2]
[359379246,1745963453894,-151.0,0.00027412,7]
[359379247,1745963453903,-151.0,0.00027412,7]
[359379248,1745963453912,-151.0,0.00027412,7]
[359379249,1745963453922,-151.0,0.00027412,7]
[359379250,1745963453931,-151.0,0.00027412,7]
[359379251,1745963453941,-151.0,0.00027412,7]
[359379252,1745963453950,-348.190547,0.00027412,7]
[359379253,1745963453959,-685.864806,0.00027412,7]
[359379254,1745963453968,-348.190547,0.00027412,7]
[359379255,1745963453978,-455.09118,0.00027412,7]
[359379256,1745963453987,-455.09118,0.00027412,7]
[359379257,1745963453996,-685.864806,0.00027412,7]
[359379258,1745963454005,-234.775697,0.00027412,7]
[359379259,1745963454014,-455.09118,0.00027412,7]
[359379260,1745963454023,-455.09118,0.00027412,7]
[359379261,1745963454033,-234.775697,0.00027412,7]
[359379262,1745963454042,-151.0,0.00027478,7]
[359379263,1745963454051,-173.494402,0.00027478,7]
[359379264,1745963454060,-164.236879,0.00027478,7]
[359379265,1745963454070,-570.034764,0.00027478,7]
[359379266,1745963454079,-173.494402,0.00027478,7]
[359379267,1745963454088,-164.236879,0.00027478,7]
[359379268,1745963454097,-570.034764,0.00027478,7]
[359379269,1745963454106,-151.0,0.00027478,7]
[359379270,1745963454115,-160.172663,0.00027478,7]
[359379271,1745963454125,-151.0,0.00027478,7]
[359379272,1745963454134,-151.0,0.00027478,7]
[359379273,1745963454143,-151.0,0.00027478,7]
[359379274,1745963454153,-396.508821,0.00027478,7]
[359379275,1745963454162,-396.508821,0.00027478,7]
[359379276,1745963454171,-160.0,0.00027478,3]
[359379277,1745963454180,-160.0,0.00027478,3]
[359379278,1745963454189,-2096.15547118,0.00027479,2]
[359379279,1745963454198,-304.758345,0.00027479,7]
[359379280,1745963454207,-151.0,0.00027479,7]
[359379281,1745963454216,-173.234585,0.00027479,7]
[359379282,1745963454225,-151.0,0.000275,14]
[359379283,1745963454234,-151.0,0.00027534,7]
[359379284,1745963454243,-274.072939,0.00027534,7]
[359379285,1745963454251,-274.072939,0.00027534,7]
[359379286,1745963454261,-151.0,0.00027534,7]
[359379287,1745963454270,-363.686898,0.00027534,7]
[359379288,1745963454279,-363.68689,0.00027534,7]
[359379289,1745963454288,-151.0,0.00027534,7]
[359379290,1745963454297,-685.864806,0.00027534,7]
[359379291,1745963454307,-685.864806,0.00027534,7]
[359379292,1745963454315,-2241.07832372,0.00027561,2]
[359379293,1745963454324,-418.87778755,0.00027561,2]
[359379294,1745963454333,-274.072939,0.00027571,7]
[359379295,1745963454342,-274.072939,0.00027571,7]
[359379296,1745963454351,-151.0,0.00027571,7]
[359379297,1745963454361,-151.0,0.00027571,7]
[359379298,1745963454371,-151.0,0.00027571,7]
[359379299,1745963454380,-1000.0,0.00027571,28]
[359379300,1745963454390,-1000.0,0.00027571,28]
[359379301,1745963454400,-1000.0,0.00027571,28]
[359379302,1745963454409,-1000.0,0.00027571,28]
[359379303,1745963454418,-1000.0,0.00027571,28]
[359379304,1745963454428,-1000.0,0.00027571,28]
[359379305,1745963454437,-1000.0,0.00027571,28]
[359379306,1745963454447,-1000.0,0.00027571,28]
[359379307,1745963454456,-1000.0,0.00027571,28]
[359379308,1745963454465,-1000.0,0.00027571,28]
[359379309,1745963454475,-1000.0,0.00027571,28]
[359379310,1745963454484,-1000.0,0.00027571,28]
[359379311,1745963454494,-1000.0,0.00027571,28]
[359379312,1745963454503,-1000.0,0.00027571,28]
[359379313,1745963454513,-1000.0,0.00027571,28]
[359379314,1745963454522,-901.672785,0.00027571,28]
[359379315,1745963454532,-151.0,0.00027571,7]
[359379316,1745963454542,-301.744648,0.00027571,7]
[359379317,1745963454551,-301.744648,0.00027571,7]
[359379318,1745963454561,-627.547889,0.00027571,7]
[359379319,1745963454570,-627.547889,0.00027571,7]
[359379320,1745963454579,-1100.283541,0.00027571,7]
[359379321,1745963454589,-1100.283541,0.00027571,7]
[359379322,1745963454599,-1324.525088,0.00027571,2]
[359379323,1745963454611,-1324.525088,0.00027571,2]
[359379324,1745963454622,-227.137775,0.00027571,7]
[359379325,1745963454634,-227.137775,0.00027571,7]
[359379326,1745963454643,-523.062648,0.00027571,7]
[359379327,1745963454654,-523.062648,0.00027571,7]
[359379328,1745963454664,-151.0,0.00027571,7]
[359379329,1745963454674,-170.558248,0.00027571,7]
[359379330,1745963454683,-170.558248,0.00027571,7]
[359379331,1745963454694,-437.797287,0.00027571,7]
[359379332,1745963454704,-437.797287,0.00027571,7]
[359379333,1745963454713,-151.0,0.00027571,7]
[359379334,1745963454723,-165.511254,0.00027571,2]
[359379335,1745963454735,-165.511254,0.00027571,2]
[359379336,1745963454745,-151.0,0.00027571,7]
[359379337,1745963454758,-151.0,0.00027571,7]
[359379338,1745963454769,-151.0,0.00027571,7]
[359379339,1745963454778,-348.190547,0.00027571,7]
[359379340,1745963454789,-348.190547,0.00027571,7]
[359379341,1745963454798,-455.09118,0.00027571,7]
[359379342,1745963454808,-234.775697,0.00027571,7]
[359379343,1745963454818,-455.09118,0.00027571,7]
[359379344,1745963454827,-234.775697,0.00027571,7]
[359379345,1745963454837,-151.0,0.000276,13]
[359379346,1745963454846,-151.0,0.000276,20]
[359379347,1745963454855,-151.0,0.000276,18]
[359379348,1745963454864,-151.0,0.000276,19]
[359379349,1745963454874,-2241.07832372,0.00027656,2]
[359379350,1745963454884,-418.87778755,0.00027656,2]
[359379351,1745963454894,-11205.3916186,0.00027661,2]
[359379352,1745963454904,-2094.38893775,0.00027661,2]
[359379353,1745963454914,-170.700971,0.00027661,7]
[359379354,1745963454924,-173.494402,0.00027661,7]
[359379355,1745963454934,-164.236879,0.00027661,7]
[359379356,1745963454944,-570.034764,0.00027661,7]
[359379357,1745963454953,-173.494402,0.00027661,7]
[359379358,1745963454963,-164.236879,0.00027661,7]
[359379359,1745963454973,-570.034764,0.00027661,7]
[359379360,1745963454983,-151.0,0.00027661,7]
[359379361,1745963454993,-151.0,0.00027661,7]
[359379362,1745963455003,-151.0,0.00027661,7]
[359379363,1745963455012,-151.0,0.00027661,7]
[359379364,1745963455022,-28078.39559498,0.00027666,2]
[359379365,1745963455031,-304.758345,0.00027666,7]
[359379366,1745963455041,-151.0,0.00027666,7]
[359379367,1745963455051,-396.508821,0.00027666,7]
[359379368,1745963455060,-396.508821,0.00027666,7]
[359379369,1745963455070,-1324.525088,0.00027666,2]
[359379370,1745963455079,-1324.525088,0.00027666,2]
[359379371,1745963455088,-227.137775,0.00027666,7]
[359379372,1745963455098,-227.137775,0.00027666,7]
[359379373,1745963455107,-523.062648,0.00027666,7]
[359379374,1745963455117,-523.062648,0.00027666,7]
[359379375,1745963455127,-266.61047904,0.00027666,7]
[359379376,1745963455138,-170.558248,0.00027666,7]
[359379377,1745963455148,-170.558248,0.00027666,7]
[359379378,1745963455157,-437.797287,0.00027666,7]
[359379379,1745963455167,-437.797287,0.00027666,7]
[359379380,1745963455177,-151.0,0.00027666,7]
[359379381,1745963455186,-165.511254,0.00027666,2]
[359379382,1745963455196,-165.511254,0.00027666,2]
[359379383,1745963455206,-151.0,0.00027666,7]
[359379384,1745963455215,-151.0,0.00027666,7]
[359379385,1745963455225,-151.0,0.00027666,7]
[359379386,1745963455234,-348.190547,0.00027666,7]
[359379387,1745963455243,-685.864806,0.00027666,7]
[359379388,1745963455253,-348.190547,0.00027666,7]
[359379389,1745963455263,-13911.80436574,0.00027666,2]
[359379390,1745963455272,-685.864806,0.00027666,7]
[359379391,1745963455375,-234.775697,0.00027666,7]
[359379392,1745963455396,-234.775697,0.00027666,7]
[359379393,1745963455405,-500.0,0.0002767,2]
[359379394,1745963455415,-161.35974344,0.0002767,10]
[359379395,1745963455424,-160.0,0.0002767,10]
[359379396,1745963455433,-406.8437366,0.0002767,2]
[359379397,1745963455443,-151.0,0.0002767,7]
[359379398,1745963455452,-151.0,0.0002767,7]
[359379399,1745963455461,-151.0,0.0002767,7]
[359379400,1745963455470,-151.0,0.0002767,7]
[359379401,1745963455480,-151.0,0.00027671,7]
[359379402,1745963455489,-151.0,0.00027671,7]
[359379403,1745963455499,-151.0,0.00027671,7]
[359379404,1745963455508,-151.0,0.00027671,7]
[359379405,1745963455517,-157.282533,0.00027671,7]
[359379406,1745963455527,-151.0,0.00027671,7]
[359379407,1745963455537,-151.0,0.00027671,7]
[359379408,1745963455547,-151.0,0.00027671,7]
[359379409,1745963455557,-151.0,0.00027671,7]
[359379410,1745963455566,-151.254667,0.00027671,7]
[359379411,1745963455575,-151.0,0.00027671,7]
[359379412,1745963455585,-159.299332,0.00027671,7]
[359379413,1745963455594,-151.0,0.00027671,7]
[359379414,1745963455604,-151.0,0.00027671,7]
[359379415,1745963455614,-151.0,0.00027671,7]
[359379416,1745963455623,-151.0,0.00027671,7]
[359379417,1745963455633,-151.0,0.00027671,7]
[359379418,1745963455642,-304.758345,0.00027671,7]
[359379419,1745963455652,-304.758345,0.00027671,7]
[359379420,1745963455662,-304.758345,0.00027671,7]
[359379421,1745963455672,-304.758345,0.00027671,7]
[359379422,1745963455681,-304.758345,0.00027671,7]